[Event "Titled Tuesday Blitz January 17 Early 2023"]
[White "Hajiyev, Kanan"]
[Black "Hoffmann, Asa"]
[WhiteFideId "13404148"]
[BlackFideId "2001470"]
[WhiteElo "2197"]
[BlackElo "2185"]
[Result "0-1"]
[Round "06"]
[TimeControl "180+2"]
[Date "2023.01.17"]
[WhiteClock "0:00:03"]
[BlackClock "0:00:12"]

1. d4 {[%clk 0:03:00]}  Nf6 {[%clk 0:02:58]} 2. c4 {[%clk 0:02:47]}  c5 {[%clk 0:02:58]} 3. d5 {[%clk 0:02:46]}  e5 {[%clk 0:02:57]} 4. dxe6 {[%clk 0:02:45]}  fxe6 {[%clk 0:02:57]} 5. Nc3 {[%clk 0:02:44]}  d5 {[%clk 0:02:57]} 6. e4 {[%clk 0:02:33]}  d4 {[%clk 0:02:55]} 7. e5 {[%clk 0:02:34]}  Nfd7 {[%clk 0:02:43]} 8. Ne4 {[%clk 0:02:22]}  Nxe5 {[%clk 0:02:43]} 9. Qh5+ {[%clk 0:02:17]}  Nf7 {[%clk 0:02:23]} 10. Nf3 {[%clk 0:02:11]}  g6 {[%clk 0:02:20]} 11. Qh3 {[%clk 0:01:56]}  Nc6 {[%clk 0:02:09]} 12. Bd3 {[%clk 0:01:46]}  Bg7 {[%clk 0:02:00]} 13. O-O {[%clk 0:01:44]}  O-O {[%clk 0:02:00]} 14. Nxc5 {[%clk 0:01:42]}  e5 {[%clk 0:01:55]} 15. Qg3 {[%clk 0:01:35]}  Nd6 {[%clk 0:01:49]} 16. Bg5 {[%clk 0:01:30]}  Qb6 {[%clk 0:01:44]} 17. Ne4 {[%clk 0:01:04]}  Nf5 {[%clk 0:01:43]} 18. Qh3 {[%clk 0:00:58]}  Ne3 {[%clk 0:01:40]} 19. Qh4 {[%clk 0:00:50]}  Nxf1 {[%clk 0:01:39]} 20. Rxf1 {[%clk 0:00:50]}  Qxb2 {[%clk 0:01:35]} 21. Nf6+ {[%clk 0:00:48]}  Bxf6 {[%clk 0:01:30]} 22. Bxf6 {[%clk 0:00:49]}  Qb6 {[%clk 0:01:06]} 23. Bxg6 {[%clk 0:00:31]}  Qc7 {[%clk 0:00:53]} 24. Be4 {[%clk 0:00:19]}  Rxf6 {[%clk 0:00:43]} 25. Qxf6 {[%clk 0:00:17]}  Qf7 {[%clk 0:00:43]} 26. Qg5+ {[%clk 0:00:13]}  Kf8 {[%clk 0:00:39]} 27. Bd5 {[%clk 0:00:07]}  Qg6 {[%clk 0:00:35]} 28. Qh4 {[%clk 0:00:04]}  Qf5 {[%clk 0:00:23]} 29. Qh6+ {[%clk 0:00:04]}  Ke8 {[%clk 0:00:18]} 30. Ng5 {[%clk 0:00:03]}  Ne7 {[%clk 0:00:12]} 0-1


[Site "https://www.chess.com"]

[Event "Titled Tuesday Blitz January 17 Early 2023"]
[White "Vagman, Roy"]
[Black "TacticalSam94"]
[WhiteFideId "2828995"]
[WhiteElo "2273"]
[BlackElo "2382"]
[Result "1/2-1/2"]
[Round "06"]
[TimeControl "180+2"]
[Date "2023.01.17"]
[WhiteClock "0:00:08"]
[BlackClock "0:00:20"]

1. e4 {[%clk 0:02:53]}  c5 {[%clk 0:02:59]} 2. Nf3 {[%clk 0:02:54]}  d6 {[%clk 0:03:00]} 3. d4 {[%clk 0:02:54]}  cxd4 {[%clk 0:03:00]} 4. Nxd4 {[%clk 0:02:54]}  Nf6 {[%clk 0:03:00]} 5. f3 {[%clk 0:02:54]}  Nc6 {[%clk 0:02:59]} 6. Be3 {[%clk 0:02:53]}  Qb6 {[%clk 0:02:51]} 7. Qd2 {[%clk 0:02:36]}  Qxb2 {[%clk 0:02:46]} 8. Nb3 {[%clk 0:02:34]}  Be6 {[%clk 0:02:35]} 9. Qc3 {[%clk 0:02:20]}  Qxc3+ {[%clk 0:02:31]} 10. Nxc3 {[%clk 0:02:21]}  a6 {[%clk 0:02:25]} 11. Na4 {[%clk 0:02:19]}  Nd7 {[%clk 0:02:25]} 12. O-O-O {[%clk 0:02:17]}  g6 {[%clk 0:02:24]} 13. Nd4 {[%clk 0:02:16]}  Nxd4 {[%clk 0:02:16]} 14. Bxd4 {[%clk 0:02:17]}  f6 {[%clk 0:02:15]} 15. Kb2 {[%clk 0:02:13]}  Bg7 {[%clk 0:02:15]} 16. Be2 {[%clk 0:02:06]}  Kf7 {[%clk 0:02:15]} 17. Nb6 {[%clk 0:01:59]}  Nxb6 {[%clk 0:02:14]} 18. Bxb6 {[%clk 0:02:00]}  f5+ {[%clk 0:02:13]} 19. Bd4 {[%clk 0:01:57]}  Rhc8 {[%clk 0:02:10]} 20. Bxg7 {[%clk 0:01:56]}  Kxg7 {[%clk 0:02:10]} 21. exf5 {[%clk 0:01:55]}  Bxf5 {[%clk 0:02:10]} 22. Bd3 {[%clk 0:01:56]}  Bxd3 {[%clk 0:02:04]} 23. Rxd3 {[%clk 0:01:55]}  Rc5 {[%clk 0:01:57]} 24. Re1 {[%clk 0:01:51]}  Kf7 {[%clk 0:01:57]} 25. a4 {[%clk 0:01:40]}  b5 {[%clk 0:01:54]} 26. axb5 {[%clk 0:01:40]}  Rxb5+ {[%clk 0:01:55]} 27. Rb3 {[%clk 0:01:40]}  Rab8 {[%clk 0:01:53]} 28. Ra1 {[%clk 0:01:34]}  Rxb3+ {[%clk 0:01:51]} 29. cxb3 {[%clk 0:01:35]}  Rb6 {[%clk 0:01:51]} 30. Kc3 {[%clk 0:01:35]}  e5 {[%clk 0:01:50]} 31. Kc4 {[%clk 0:01:34]}  Ke6 {[%clk 0:01:50]} 32. b4 {[%clk 0:01:33]}  d5+ {[%clk 0:01:46]} 33. Kc3 {[%clk 0:01:13]}  d4+ {[%clk 0:01:44]} 34. Kd3 {[%clk 0:01:00]}  Rxb4 {[%clk 0:01:39]} 35. Rxa6+ {[%clk 0:00:57]}  Kf5 {[%clk 0:01:39]} 36. g4+ {[%clk 0:00:54]}  Kg5 {[%clk 0:01:36]} 37. Ke4 {[%clk 0:00:47]}  Rb3 {[%clk 0:01:23]} 38. Kxe5 {[%clk 0:00:26]}  Rxf3 {[%clk 0:01:23]} 39. Kxd4 {[%clk 0:00:22]}  Kxg4 {[%clk 0:01:22]} 40. Ra7 {[%clk 0:00:17]}  h5 {[%clk 0:01:20]} 41. Ra2 {[%clk 0:00:11]}  g5 {[%clk 0:01:17]} 42. Ke4 {[%clk 0:00:11]}  Rf8 {[%clk 0:01:13]} 43. Rg2+ {[%clk 0:00:11]}  Kh4 {[%clk 0:01:12]} 44. Rg3 {[%clk 0:00:11]}  g4 {[%clk 0:01:12]} 45. Ke3 {[%clk 0:00:11]}  Kg5 {[%clk 0:00:58]} 46. Ke2 {[%clk 0:00:11]}  Ra8 {[%clk 0:00:50]} 47. Kf2 {[%clk 0:00:09]}  Ra2+ {[%clk 0:00:49]} 48. Kg1 {[%clk 0:00:09]}  Ra1+ {[%clk 0:00:49]} 49. Kg2 {[%clk 0:00:06]}  Kh4 {[%clk 0:00:47]} 50. Rb3 {[%clk 0:00:05]}  Ra2+ {[%clk 0:00:47]} 51. Kg1 {[%clk 0:00:04]}  Rd2 {[%clk 0:00:47]} 52. Kh1 {[%clk 0:00:04]}  Rf2 {[%clk 0:00:45]} 53. Kg1 {[%clk 0:00:04]}  Rf8 {[%clk 0:00:45]} 54. Kg2 {[%clk 0:00:04]}  Rf5 {[%clk 0:00:44]} 55. Kg1 {[%clk 0:00:05]}  Kg5 {[%clk 0:00:44]} 56. Kg2 {[%clk 0:00:05]}  h4 {[%clk 0:00:45]} 57. Kg1 {[%clk 0:00:06]}  Rc5 {[%clk 0:00:41]} 58. Kg2 {[%clk 0:00:05]}  h3+ {[%clk 0:00:41]} 59. Kg3 {[%clk 0:00:04]}  Kf5 {[%clk 0:00:35]} 60. Rd3 {[%clk 0:00:03]}  Rc2 {[%clk 0:00:25]} 61. Rd5+ {[%clk 0:00:03]}  Ke4 {[%clk 0:00:24]} 62. Ra5 {[%clk 0:00:03]}  Rg2+ {[%clk 0:00:24]} 63. Kh4 {[%clk 0:00:04]}  g3 {[%clk 0:00:22]} 64. Kxh3 {[%clk 0:00:03]}  Rxh2+ {[%clk 0:00:19]} 65. Kxg3 {[%clk 0:00:04]}  Rc2 {[%clk 0:00:19]} 66. Ra4+ {[%clk 0:00:04]}  Kd3 {[%clk 0:00:20]} 67. Ra8 {[%clk 0:00:05]}  Rc3 {[%clk 0:00:20]} 68. Kf4 {[%clk 0:00:05]}  Rc4+ {[%clk 0:00:20]} 69. Ke5 {[%clk 0:00:05]}  Rg4 {[%clk 0:00:19]} 70. Rd8+ {[%clk 0:00:05]}  Ke3 {[%clk 0:00:19]} 71. Kd6 {[%clk 0:00:06]}  Rg6+ {[%clk 0:00:19]} 72. Ke7 {[%clk 0:00:07]}  Rg7+ {[%clk 0:00:19]} 73. Ke8 {[%clk 0:00:07]}  Rg8+ {[%clk 0:00:19]} 74. Kd7 {[%clk 0:00:07]}  Rxd8+ {[%clk 0:00:20]} 75. Kxd8 {[%clk 0:00:08]} 1/2-1/2


[Site "https://www.chess.com"]

[Event "Titled Tuesday Blitz January 17 Early 2023"]
[White "Garmash, Aliona"]
[Black "Kazancev, Valerij M"]
[WhiteFideId "34127620"]
[BlackFideId "4179609"]
[WhiteElo "2039"]
[BlackElo "2313"]
[Result "0-1"]
[Round "06"]
[TimeControl "180+2"]
[Date "2023.01.17"]
[WhiteClock "0:00:01"]
[BlackClock "0:00:48"]

1. d4 {[%clk 0:03:00]}  g6 {[%clk 0:02:59]} 2. e4 {[%clk 0:02:55]}  Bg7 {[%clk 0:02:59]} 3. Nc3 {[%clk 0:02:53]}  e6 {[%clk 0:02:59]} 4. Nf3 {[%clk 0:02:40]}  Ne7 {[%clk 0:02:58]} 5. Bd3 {[%clk 0:02:35]}  a6 {[%clk 0:02:56]} 6. a4 {[%clk 0:02:33]}  d5 {[%clk 0:02:50]} 7. O-O {[%clk 0:02:29]}  O-O {[%clk 0:02:46]} 8. Bf4 {[%clk 0:02:07]}  dxe4 {[%clk 0:02:21]} 9. Nxe4 {[%clk 0:01:51]}  Nbc6 {[%clk 0:02:17]} 10. c3 {[%clk 0:01:47]}  h6 {[%clk 0:02:16]} 11. Qd2 {[%clk 0:01:41]}  f5 {[%clk 0:02:05]} 12. Nc5 {[%clk 0:01:02]}  b6 {[%clk 0:01:49]} 13. Nb3 {[%clk 0:00:59]}  g5 {[%clk 0:01:49]} 14. Be5 {[%clk 0:00:53]}  Nxe5 {[%clk 0:01:48]} 15. Nxe5 {[%clk 0:00:52]}  Bxe5 {[%clk 0:01:31]} 16. dxe5 {[%clk 0:00:50]}  Qd5 {[%clk 0:01:30]} 17. Nd4 {[%clk 0:00:31]}  Bb7 {[%clk 0:01:02]} 18. f3 {[%clk 0:00:20]}  c5 {[%clk 0:01:02]} 19. Ne2 {[%clk 0:00:11]}  c4 {[%clk 0:01:00]} 20. Rad1 {[%clk 0:00:06]}  cxd3 {[%clk 0:00:58]} 21. Qe3 {[%clk 0:00:04]}  dxe2 {[%clk 0:00:52]} 22. Rxd5 {[%clk 0:00:03]}  exf1=Q+ {[%clk 0:00:52]} 23. Kxf1 {[%clk 0:00:03]}  Nxd5 {[%clk 0:00:51]} 24. Qd2 {[%clk 0:00:02]}  Rfd8 {[%clk 0:00:50]} 25. h4 {[%clk 0:00:02]}  f4 {[%clk 0:00:49]} 26. Kf2 {[%clk 0:00:01]}  Ne3 {[%clk 0:00:48]} 0-1


[Site "https://www.chess.com"]

[Event "Titled Tuesday Blitz January 17 Early 2023"]
[White "Abdilkhair, Abilmansur"]
[Black "Tymrakiewicz, Rafal"]
[WhiteFideId "13716417"]
[BlackFideId "1108832"]
[WhiteElo "2268"]
[BlackElo "2144"]
[Result "1/2-1/2"]
[Round "06"]
[TimeControl "180+2"]
[Date "2023.01.17"]
[WhiteClock "0:00:08"]
[BlackClock "0:00:05"]

1. d4 {[%clk 0:02:46]}  d5 {[%clk 0:02:57]} 2. c4 {[%clk 0:02:46]}  c6 {[%clk 0:02:56]} 3. Nf3 {[%clk 0:02:46]}  Nf6 {[%clk 0:02:56]} 4. Nc3 {[%clk 0:02:47]}  a6 {[%clk 0:02:57]} 5. cxd5 {[%clk 0:02:47]}  cxd5 {[%clk 0:02:57]} 6. Bf4 {[%clk 0:02:47]}  Nc6 {[%clk 0:02:57]} 7. e3 {[%clk 0:02:47]}  Bg4 {[%clk 0:02:57]} 8. Be2 {[%clk 0:02:45]}  e6 {[%clk 0:02:57]} 9. h3 {[%clk 0:02:45]}  Bh5 {[%clk 0:02:55]} 10. Nd2 {[%clk 0:02:42]}  Bxe2 {[%clk 0:02:54]} 11. Qxe2 {[%clk 0:02:43]}  Bd6 {[%clk 0:02:54]} 12. Bxd6 {[%clk 0:02:40]}  Qxd6 {[%clk 0:02:55]} 13. O-O {[%clk 0:02:41]}  O-O {[%clk 0:02:53]} 14. Rac1 {[%clk 0:02:38]}  b5 {[%clk 0:02:51]} 15. Nb3 {[%clk 0:02:36]}  Nd7 {[%clk 0:02:51]} 16. Rfd1 {[%clk 0:02:32]}  f5 {[%clk 0:02:47]} 17. Nc5 {[%clk 0:02:19]}  Nxc5 {[%clk 0:02:36]} 18. dxc5 {[%clk 0:02:20]}  Qc7 {[%clk 0:02:23]} 19. Qf3 {[%clk 0:02:14]}  Rad8 {[%clk 0:02:08]} 20. Ne2 {[%clk 0:02:04]}  e5 {[%clk 0:01:42]} 21. Rxd5 {[%clk 0:01:52]}  e4 {[%clk 0:01:41]} 22. Qf4 {[%clk 0:01:53]}  Qxf4 {[%clk 0:01:09]} 23. Nxf4 {[%clk 0:01:54]}  g5 {[%clk 0:01:00]} 24. Rxd8 {[%clk 0:01:42]}  Rxd8 {[%clk 0:01:01]} 25. Ne6 {[%clk 0:01:41]}  Rd2 {[%clk 0:01:01]} 26. Nd4 {[%clk 0:01:34]}  Nxd4 {[%clk 0:00:50]} 27. exd4 {[%clk 0:01:35]}  Rxd4 {[%clk 0:00:50]} 28. c6 {[%clk 0:01:29]}  Rd8 {[%clk 0:00:50]} 29. Rc5 {[%clk 0:01:27]}  Rc8 {[%clk 0:00:36]} 30. Rxf5 {[%clk 0:01:26]}  Rxc6 {[%clk 0:00:36]} 31. Rxg5+ {[%clk 0:01:27]}  Kf7 {[%clk 0:00:35]} 32. Re5 {[%clk 0:01:21]}  Rc1+ {[%clk 0:00:34]} 33. Kh2 {[%clk 0:01:20]}  Rc2 {[%clk 0:00:35]} 34. Rxe4 {[%clk 0:01:13]}  Rxf2 {[%clk 0:00:34]} 35. Rb4 {[%clk 0:01:09]}  Ke6 {[%clk 0:00:22]} 36. Kg3 {[%clk 0:01:06]}  Rd2 {[%clk 0:00:18]} 37. a3 {[%clk 0:01:04]}  Kd5 {[%clk 0:00:16]} 38. b3 {[%clk 0:00:50]}  Kc5 {[%clk 0:00:15]} 39. Kf3 {[%clk 0:00:38]}  Rd3+ {[%clk 0:00:14]} 40. Ke2 {[%clk 0:00:37]}  Rc3 {[%clk 0:00:13]} 41. h4 {[%clk 0:00:29]}  a5 {[%clk 0:00:13]} 42. Rg4 {[%clk 0:00:25]}  Rxb3 {[%clk 0:00:13]} 43. Rg5+ {[%clk 0:00:25]}  Kc4 {[%clk 0:00:12]} 44. Rg4+ {[%clk 0:00:22]}  Kc5 {[%clk 0:00:12]} 45. a4 {[%clk 0:00:21]}  bxa4 {[%clk 0:00:05]} 46. Rxa4 {[%clk 0:00:22]}  Kb5 {[%clk 0:00:04]} 47. Rg4 {[%clk 0:00:21]}  a4 {[%clk 0:00:04]} 48. Rg7 {[%clk 0:00:21]}  a3 {[%clk 0:00:04]} 49. Rxh7 {[%clk 0:00:19]}  Rb4 {[%clk 0:00:01]} 50. Rb7+ {[%clk 0:00:13]}  Kc4 {[%clk 0:00:02]} 51. Ra7 {[%clk 0:00:11]}  Kb3 {[%clk 0:00:02]} 52. h5 {[%clk 0:00:09]}  Rh4 {[%clk 0:00:02]} 53. Ra5 {[%clk 0:00:07]}  Kb4 {[%clk 0:00:02]} 54. Ra6 {[%clk 0:00:06]}  Rxh5 {[%clk 0:00:03]} 55. g4 {[%clk 0:00:07]}  Re5+ {[%clk 0:00:03]} 56. Kf3 {[%clk 0:00:07]}  Rc5 {[%clk 0:00:03]} 57. Kf4 {[%clk 0:00:08]}  Ra5 {[%clk 0:00:03]} 58. Rb6+ {[%clk 0:00:08]}  Kc5 {[%clk 0:00:03]} 59. Rb1 {[%clk 0:00:09]}  a2 {[%clk 0:00:04]} 60. Rc1+ {[%clk 0:00:09]}  Kd4 {[%clk 0:00:04]} 61. g5 {[%clk 0:00:09]}  a1=Q {[%clk 0:00:04]} 62. Rxa1 {[%clk 0:00:09]}  Rxa1 {[%clk 0:00:05]} 63. Kf5 {[%clk 0:00:10]}  Rf1+ {[%clk 0:00:05]} 64. Ke6 {[%clk 0:00:10]}  Ke4 {[%clk 0:00:05]} 65. g6 {[%clk 0:00:09]}  Rg1 {[%clk 0:00:05]} 66. Kf7 {[%clk 0:00:09]}  Rf1+ {[%clk 0:00:06]} 67. Ke7 {[%clk 0:00:08]}  Rg1 {[%clk 0:00:06]} 68. Kf7 {[%clk 0:00:08]}  Rf1+ {[%clk 0:00:05]} 69. Ke7 {[%clk 0:00:08]}  Rg1 {[%clk 0:00:05]} 70. Kf7 {[%clk 0:00:08]} 1/2-1/2


[Site "https://www.chess.com"]

[Event "Titled Tuesday Blitz January 17 Early 2023"]
[White "Rios Escobar, Adan"]
[Black "Krstulovic, Alex"]
[WhiteFideId "3403645"]
[BlackFideId "760056"]
[WhiteElo "2234"]
[BlackElo "2428"]
[Result "1-0"]
[Round "06"]
[TimeControl "180+2"]
[Date "2023.01.17"]
[WhiteClock "0:00:58"]
[BlackClock "0:00:45"]

1. d4 {[%clk 0:03:00]}  Nf6 {[%clk 0:02:59]} 2. g3 {[%clk 0:03:01]}  d5 {[%clk 0:02:59]} 3. Nf3 {[%clk 0:03:00]}  c5 {[%clk 0:02:57]} 4. Bg2 {[%clk 0:02:58]}  cxd4 {[%clk 0:02:57]} 5. O-O {[%clk 0:02:59]}  Nc6 {[%clk 0:02:54]} 6. Nxd4 {[%clk 0:02:59]}  e5 {[%clk 0:02:55]} 7. Nxc6 {[%clk 0:02:59]}  bxc6 {[%clk 0:02:55]} 8. c4 {[%clk 0:03:00]}  Be6 {[%clk 0:02:56]} 9. Nc3 {[%clk 0:03:00]}  Qd7 {[%clk 0:02:52]} 10. Qa4 {[%clk 0:03:00]}  Rc8 {[%clk 0:02:52]} 11. cxd5 {[%clk 0:02:55]}  cxd5 {[%clk 0:02:51]} 12. Qxd7+ {[%clk 0:02:55]}  Kxd7 {[%clk 0:02:51]} 13. Rd1 {[%clk 0:02:56]}  Bc5 {[%clk 0:02:24]} 14. Na4 {[%clk 0:02:55]}  Bb6 {[%clk 0:02:17]} 15. Bg5 {[%clk 0:02:54]}  Rc2 {[%clk 0:02:12]} 16. Bxf6 {[%clk 0:02:43]}  gxf6 {[%clk 0:02:12]} 17. Bxd5 {[%clk 0:02:12]}  Bxd5 {[%clk 0:02:07]} 18. Rxd5+ {[%clk 0:02:11]}  Ke6 {[%clk 0:02:03]} 19. Nxb6 {[%clk 0:02:11]}  axb6 {[%clk 0:02:02]} 20. Rb5 {[%clk 0:02:12]}  Rxe2 {[%clk 0:01:54]} 21. Rxb6+ {[%clk 0:02:11]}  Kf5 {[%clk 0:01:55]} 22. a4 {[%clk 0:02:09]}  Rc8 {[%clk 0:01:53]} 23. Ra3 {[%clk 0:01:44]}  e4 {[%clk 0:01:42]} 24. Re3 {[%clk 0:01:39]}  Rc1+ {[%clk 0:01:38]} 25. Kg2 {[%clk 0:01:37]}  Rxe3 {[%clk 0:01:36]} 26. fxe3 {[%clk 0:01:38]}  Rc2+ {[%clk 0:01:36]} 27. Kh3 {[%clk 0:01:36]}  Re2 {[%clk 0:01:25]} 28. a5 {[%clk 0:01:18]}  Rxe3 {[%clk 0:01:22]} 29. a6 {[%clk 0:01:15]}  Re1 {[%clk 0:01:22]} 30. b4 {[%clk 0:01:01]}  Ra1 {[%clk 0:01:02]} 31. Rb5+ {[%clk 0:01:00]}  Kg6 {[%clk 0:00:48]} 32. Ra5 {[%clk 0:01:01]}  Rxa5 {[%clk 0:00:45]} 33. bxa5 {[%clk 0:00:58]} 1-0


[Site "https://www.chess.com"]

[Event "Titled Tuesday Blitz January 17 Early 2023"]
[White "Sanchez, Robert"]
[Black "Lakshmi C"]
[WhiteFideId "2034360"]
[BlackFideId "25035347"]
[WhiteElo "1966"]
[BlackElo "1928"]
[Result "1-0"]
[Round "06"]
[TimeControl "180+2"]
[Date "2023.01.17"]
[WhiteClock "0:00:42"]
[BlackClock "0:00:03"]

1. e4 {[%clk 0:03:00]}  c5 {[%clk 0:02:58]} 2. Nf3 {[%clk 0:03:00]}  Nc6 {[%clk 0:02:58]} 3. d4 {[%clk 0:03:00]}  cxd4 {[%clk 0:02:58]} 4. Nxd4 {[%clk 0:03:01]}  Nf6 {[%clk 0:02:58]} 5. Nc3 {[%clk 0:03:01]}  e5 {[%clk 0:02:57]} 6. Ndb5 {[%clk 0:03:01]}  d6 {[%clk 0:02:57]} 7. Bg5 {[%clk 0:03:01]}  a6 {[%clk 0:02:56]} 8. Bxf6 {[%clk 0:03:01]}  gxf6 {[%clk 0:02:56]} 9. Na3 {[%clk 0:03:01]}  b5 {[%clk 0:02:56]} 10. Nd5 {[%clk 0:03:02]}  Bg7 {[%clk 0:02:56]} 11. Bd3 {[%clk 0:03:02]}  Ne7 {[%clk 0:02:54]} 12. c4 {[%clk 0:02:56]}  Nxd5 {[%clk 0:02:49]} 13. exd5 {[%clk 0:02:53]}  f5 {[%clk 0:02:36]} 14. Qb3 {[%clk 0:02:22]}  e4 {[%clk 0:02:17]} 15. Be2 {[%clk 0:02:19]}  Qa5+ {[%clk 0:02:02]} 16. Kf1 {[%clk 0:02:19]}  Qd2 {[%clk 0:01:40]} 17. Rb1 {[%clk 0:02:08]}  b4 {[%clk 0:01:25]} 18. Nc2 {[%clk 0:02:00]}  a5 {[%clk 0:01:24]} 19. Rd1 {[%clk 0:01:47]}  Qg5 {[%clk 0:00:39]} 20. c5 {[%clk 0:01:26]}  dxc5 {[%clk 0:00:20]} 21. Bb5+ {[%clk 0:01:26]}  Bd7 {[%clk 0:00:13]} 22. Bxd7+ {[%clk 0:01:23]}  Kxd7 {[%clk 0:00:13]} 23. Qa4+ {[%clk 0:01:23]}  Kd8 {[%clk 0:00:13]} 24. Qc6 {[%clk 0:01:18]}  Rc8 {[%clk 0:00:11]} 25. Qb6+ {[%clk 0:01:14]}  Ke8 {[%clk 0:00:11]} 26. d6 {[%clk 0:01:14]}  Rd8 {[%clk 0:00:06]} 27. Ne3 {[%clk 0:01:00]}  Bd4 {[%clk 0:00:03]} 28. Nd5 {[%clk 0:00:42]} 1-0


[Site "https://www.chess.com"]

[Event "Titled Tuesday Blitz January 17 Early 2023"]
[White "Ruge, Edison"]
[Black "Heinemann, Josefine"]
[WhiteFideId "4401000"]
[BlackFideId "12900460"]
[WhiteElo "2201"]
[BlackElo "2289"]
[Result "0-1"]
[Round "06"]
[TimeControl "180+2"]
[Date "2023.01.17"]
[WhiteClock "0:00:02"]
[BlackClock "0:00:16"]

1. e4 {[%clk 0:02:49]}  e5 {[%clk 0:02:58]} 2. Nf3 {[%clk 0:02:43]}  Nc6 {[%clk 0:02:58]} 3. Bb5 {[%clk 0:02:44]}  a6 {[%clk 0:02:57]} 4. Ba4 {[%clk 0:02:44]}  Nf6 {[%clk 0:02:56]} 5. Qe2 {[%clk 0:02:45]}  b5 {[%clk 0:02:47]} 6. Bb3 {[%clk 0:02:43]}  Be7 {[%clk 0:02:44]} 7. a4 {[%clk 0:02:44]}  Rb8 {[%clk 0:02:42]} 8. axb5 {[%clk 0:02:41]}  axb5 {[%clk 0:02:43]} 9. Nc3 {[%clk 0:02:39]}  O-O {[%clk 0:02:42]} 10. d3 {[%clk 0:02:36]}  d6 {[%clk 0:02:39]} 11. h3 {[%clk 0:02:36]}  Be6 {[%clk 0:02:37]} 12. Bxe6 {[%clk 0:02:34]}  fxe6 {[%clk 0:02:36]} 13. Be3 {[%clk 0:02:33]}  b4 {[%clk 0:02:31]} 14. Nb1 {[%clk 0:02:27]}  Qd7 {[%clk 0:02:30]} 15. b3 {[%clk 0:02:26]}  Ra8 {[%clk 0:02:26]} 16. Rxa8 {[%clk 0:02:20]}  Rxa8 {[%clk 0:02:27]} 17. O-O {[%clk 0:02:19]}  Ra2 {[%clk 0:02:18]} 18. Qd1 {[%clk 0:02:15]}  d5 {[%clk 0:02:10]} 19. exd5 {[%clk 0:02:07]}  exd5 {[%clk 0:02:09]} 20. Bg5 {[%clk 0:02:05]}  h6 {[%clk 0:02:03]} 21. Bh4 {[%clk 0:02:03]}  Qf5 {[%clk 0:01:51]} 22. Nbd2 {[%clk 0:01:59]}  Bd6 {[%clk 0:01:45]} 23. Bg3 {[%clk 0:01:57]}  Ne7 {[%clk 0:01:09]} 24. Qb1 {[%clk 0:01:49]}  Ra8 {[%clk 0:01:07]} 25. Qb2 {[%clk 0:01:49]}  Ng6 {[%clk 0:01:06]} 26. Ra1 {[%clk 0:01:48]}  Rxa1+ {[%clk 0:00:57]} 27. Qxa1 {[%clk 0:01:46]}  Nf4 {[%clk 0:00:57]} 28. Bxf4 {[%clk 0:01:38]}  Qxf4 {[%clk 0:00:57]} 29. g3 {[%clk 0:01:34]}  Qf5 {[%clk 0:00:56]} 30. Kg2 {[%clk 0:01:32]}  e4 {[%clk 0:00:51]} 31. dxe4 {[%clk 0:01:08]}  Nxe4 {[%clk 0:00:50]} 32. Qa8+ {[%clk 0:01:03]}  Kh7 {[%clk 0:00:49]} 33. Qe8 {[%clk 0:00:46]}  Nxd2 {[%clk 0:00:45]} 34. Nxd2 {[%clk 0:00:45]}  Qxc2 {[%clk 0:00:44]} 35. Qe3 {[%clk 0:00:42]}  Bc5 {[%clk 0:00:40]} 36. Qf4 {[%clk 0:00:37]}  Bd6 {[%clk 0:00:34]} 37. Qe3 {[%clk 0:00:27]}  c5 {[%clk 0:00:34]} 38. Nf3 {[%clk 0:00:24]}  c4 {[%clk 0:00:32]} 39. Qe6 {[%clk 0:00:18]}  cxb3 {[%clk 0:00:24]} 40. Nd4 {[%clk 0:00:17]}  Qe4+ {[%clk 0:00:23]} 41. Qxe4+ {[%clk 0:00:16]}  dxe4 {[%clk 0:00:24]} 42. Nxb3 {[%clk 0:00:16]}  Kg6 {[%clk 0:00:24]} 43. Kf1 {[%clk 0:00:14]}  e3 {[%clk 0:00:23]} 44. fxe3 {[%clk 0:00:12]}  Bxg3 {[%clk 0:00:23]} 45. Ke2 {[%clk 0:00:12]}  Bd6 {[%clk 0:00:23]} 46. Kf3 {[%clk 0:00:12]}  Kf5 {[%clk 0:00:22]} 47. e4+ {[%clk 0:00:10]}  Ke5 {[%clk 0:00:22]} 48. Ke3 {[%clk 0:00:09]}  Be7 {[%clk 0:00:22]} 49. Kd3 {[%clk 0:00:07]}  Kf4 {[%clk 0:00:22]} 50. Nd4 {[%clk 0:00:06]}  g6 {[%clk 0:00:18]} 51. Nc6 {[%clk 0:00:04]}  Bf8 {[%clk 0:00:18]} 52. e5 {[%clk 0:00:02]}  Kf5 {[%clk 0:00:17]} 53. Kd4 {[%clk 0:00:02]}  g5 {[%clk 0:00:16]} 54. Kd5 {[%clk 0:00:02]}  h5 {[%clk 0:00:16]} 0-1


[Site "https://www.chess.com"]

[Event "Titled Tuesday Blitz January 17 Early 2023"]
[White "Degenbaev, Aziz"]
[Black "Mohammadian, Mohammad"]
[WhiteFideId "13802640"]
[BlackFideId "12566055"]
[WhiteElo "2203"]
[BlackElo "1398"]
[Result "1-0"]
[Round "06"]
[TimeControl "180+2"]
[Date "2023.01.17"]
[WhiteClock "0:01:32"]
[BlackClock "0:00:48"]

1. e4 {[%clk 0:02:55]}  e5 {[%clk 0:02:59]} 2. Nf3 {[%clk 0:02:54]}  Nc6 {[%clk 0:02:57]} 3. Bc4 {[%clk 0:02:55]}  Bc5 {[%clk 0:02:56]} 4. c3 {[%clk 0:02:53]}  Nf6 {[%clk 0:02:55]} 5. d3 {[%clk 0:02:54]}  h6 {[%clk 0:02:54]} 6. O-O {[%clk 0:02:54]}  O-O {[%clk 0:02:53]} 7. h3 {[%clk 0:02:51]}  d6 {[%clk 0:02:50]} 8. a4 {[%clk 0:02:51]}  a5 {[%clk 0:02:48]} 9. Re1 {[%clk 0:02:51]}  Bb6 {[%clk 0:02:47]} 10. Be3 {[%clk 0:02:47]}  Bxe3 {[%clk 0:02:42]} 11. Rxe3 {[%clk 0:02:40]}  Re8 {[%clk 0:02:41]} 12. Nbd2 {[%clk 0:02:39]}  Be6 {[%clk 0:02:38]} 13. Qb3 {[%clk 0:02:37]}  Bxc4 {[%clk 0:02:36]} 14. Nxc4 {[%clk 0:02:36]}  b6 {[%clk 0:02:33]} 15. Rd1 {[%clk 0:02:22]}  Ne7 {[%clk 0:02:32]} 16. d4 {[%clk 0:02:19]}  exd4 {[%clk 0:02:28]} 17. cxd4 {[%clk 0:02:20]}  Ng6 {[%clk 0:02:23]} 18. e5 {[%clk 0:02:05]}  d5 {[%clk 0:02:11]} 19. exf6 {[%clk 0:01:51]}  dxc4 {[%clk 0:02:10]} 20. Rxe8+ {[%clk 0:01:51]}  Qxe8 {[%clk 0:02:07]} 21. Qxc4 {[%clk 0:01:52]}  gxf6 {[%clk 0:01:59]} 22. Qxc7 {[%clk 0:01:52]}  Qxa4 {[%clk 0:01:52]} 23. Re1 {[%clk 0:01:52]}  Qb4 {[%clk 0:01:42]} 24. Qc6 {[%clk 0:01:43]}  Rf8 {[%clk 0:01:36]} 25. Qxf6 {[%clk 0:01:40]}  Qxb2 {[%clk 0:01:28]} 26. h4 {[%clk 0:01:41]}  Kh7 {[%clk 0:01:20]} 27. h5 {[%clk 0:01:38]}  Nh8 {[%clk 0:01:08]} 28. Qf5+ {[%clk 0:01:34]}  Kg7 {[%clk 0:01:04]} 29. Re4 {[%clk 0:01:34]}  f6 {[%clk 0:00:48]} 30. Rg4+ {[%clk 0:01:32]}  Kf7 {[%clk 0:00:48]} 31. Qd7# {[%clk 0:01:32]} 1-0


[Site "https://www.chess.com"]